bitfinex/quotes_SOLUSD_20220130
["timestamp","ask_amount","ask_price","bid_price","bid_amount"]
[1643511072538,105.65,94.428,94.354,29.2434]
[1643511072740,105.65,94.428,94.355,0.2]
[1643511074140,105.4,94.417,94.354,22.9434]
[1643511074339,6.0,94.418,94.354,22.9434]
[1643511074340,105.4,94.414,94.354,22.9434]
[1643511074742,0.25,94.413,94.354,22.9434]
[1643511077844,0.25,94.413,94.355,0.25]
[1643511079246,0.25,94.413,94.355,0.45]
[1643511080748,0.25,94.413,94.355,0.2]
[1643511080952,6.0,94.404,94.355,0.2]
[1643511081148,105.4,94.403,94.355,0.2]
[1643511081348,23.3191,94.403,94.344,0.29977656]
[1643511081552,22.0496039,94.392,94.344,0.29977656]
[1643511081749,23.0691,94.391,94.344,0.29977656]
[1643511081948,23.3191,94.391,94.344,0.29977656]
[1643511083560,105.4,94.39,94.344,0.29977656]
[1643511083954,0.25,94.389,94.344,0.29977656]
[1643511087659,105.4,94.39,94.344,0.29977656]
[1643511089266,0.32075097,94.349,94.26,15.909]
[1643511089467,14.05075097,94.349,94.25,0.1]
[1643511089667,5.53987632,94.329,94.25,0.1]
[1643511089884,0.25,94.328,94.251,27.40198809]
[1643511090086,6.0,94.319,94.25,0.1]
[1643511090283,14.80479434,94.318,94.25,0.1]
[1643511090583,6.0,94.308,94.25,0.1]
[1643511090983,6.0,94.308,94.251,1.81379386]
[1643511091187,6.0,94.308,94.252,36.39798089]
[1643511091384,0.1,94.317,94.253,105.4]
[1643511091584,5.53987632,94.329,94.253,1.8087413]
[1643511091785,5.53987632,94.329,94.254,0.25]
[1643511092186,5.53987632,94.329,94.263,6.0]
[1643511092386,5.53987632,94.329,94.264,0.25]
[1643511092585,5.53987632,94.329,94.274,105.4]
[1643511092985,5.53987632,94.329,94.273,6.0]
[1643511092986,5.53987632,94.329,94.285,105.4]
[1643511093285,19.02131604,94.397,94.293,105.4]
[1643511093486,0.1,94.396,94.301,105.4]
[1643511093689,0.1,94.416,94.304,105.4]
[1643511093887,0.1,94.437,94.311,105.4]
[1643511094085,0.1,94.437,94.321,111.4]
[1643511094286,0.1,94.437,94.341,105.4]
[1643511094586,18.27578567,94.437,94.343,105.4]
[1643511094787,0.1,94.436,94.35,6.0]
[1643511094993,210.78700899,94.439,94.36,15.34]
[1643511094994,0.1,94.438,94.36,15.34]
[1643511095186,48.4388,94.519,94.38,15.885]
[1643511095387,48.4388,94.519,94.361,0.1]
[1643511095388,2.92003136,94.518,94.391,105.4]
[1643511095587,2.92003136,94.518,94.401,6.0]
[1643511095787,19.30311882,94.517,94.402,0.25]
[1643511095988,19.30311882,94.517,94.41,6.0]
[1643511096190,19.30311882,94.517,94.41,15.34]
[1643511096386,105.4,94.515,94.411,0.25]
[1643511096687,6.0,94.505,94.411,0.25]
[1643511097086,6.0,94.503,94.411,0.25]
[1643511097286,1.18833343,94.502,94.411,0.25]
[1643511097487,6.0,94.5,94.411,0.25]
[1643511097687,6.0,94.492,94.411,0.25]
[1643511097886,6.0,94.492,94.41,15.34]
[1643511097887,0.25,94.491,94.41,15.34]
[1643511098087,6.25,94.491,94.411,0.25]
[1643511099087,17.31508229,94.48,94.411,2.0587413]
[1643511099289,0.25,94.479,94.411,2.0587413]
[1643511100188,11.53,94.479,94.41,15.34]
[1643511100390,6.0,94.47,94.392,1.8087413]
[1643511100588,6.0,94.469,94.38,15.34]
[1643511100788,6.0,94.469,94.346,47.2743]
[1643511100789,6.25,94.469,94.37,15.34]
[1643511100988,6.0,94.468,94.37,15.34]
[1643511101191,6.0,94.468,94.37,31.23]
[1643511101389,2.92636996,94.458,94.371,30.87897239]
[1643511101588,6.0,94.448,94.371,31.12897239]
[1643511101790,0.25,94.447,94.371,31.12897239]
[1643511102190,6.0,94.448,94.371,31.12897239]
[1643511102490,2.92636996,94.458,94.381,6.0]
[1643511102692,6.0,94.448,94.381,6.0]
[1643511102990,2.92636996,94.458,94.382,8.0587413]
[1643511102991,0.25,94.457,94.382,8.0587413]
[1643511103192,2.92636996,94.458,94.382,8.0587413]
[1643511103193,2.92636996,94.458,94.391,110.37957536]
[1643511103391,105.4,94.518,94.392,0.25]
[1643511103591,6.0,94.489,94.401,111.4]
[1643511103794,6.0,94.489,94.402,0.25]
[1643511104390,18.0830616,94.488,94.402,0.25]
[1643511104591,6.0,94.478,94.402,0.25]
[1643511104890,0.25,94.477,94.402,0.25]
[1643511106092,0.25,94.477,94.403,1.8087413]
[1643511106294,0.25,94.477,94.404,0.25]
[1643511106695,0.25,94.477,94.404,2.0586997]
[1643511106893,0.25,94.477,94.412,30.87897239]
[1643511107294,0.25,94.477,94.413,0.25]
[1643511109097,105.4,94.529,94.414,1.8086997]
[1643511109299,15.882,94.53,94.422,6.0]
[1643511109498,15.882,94.53,94.42,15.34]
[1643511109699,15.882,94.53,94.423,1.8086997]
[1643511109700,6.0,94.52,94.423,1.8086997]
[1643511109901,6.0,94.52,94.43,6.0]
[1643511110100,15.63779994,94.519,94.433,6.0]
[1643511110301,0.25,94.518,94.434,0.25]
[1643511110500,0.25,94.518,94.441,6.0]
[1643511110902,0.25,94.518,94.442,2.0586997]
[1643511111303,0.25,94.518,94.443,1.8086997]
[1643511111702,0.25,94.518,94.444,0.25]
[1643511112103,0.25,94.518,94.444,2.0586997]
[1643511112904,0.25,94.518,94.455,26.63494669]
[1643511113305,0.25,94.518,94.456,0.25]
[1643511118016,6.0,94.509,94.42,15.882]
[1643511118215,105.4,94.508,94.42,15.34]
[1643511118415,111.65,94.508,94.422,0.25]
[1643511118714,6.0,94.498,94.422,0.25]
[1643511118914,4.85365231,94.497,94.422,0.25]
[1643511119116,6.0,94.487,94.422,0.25]
[1643511119320,0.25,94.486,94.422,0.25]
[1643511119718,0.25,94.486,94.421,31.17096754]
[1643511120518,14.7137078,94.479,94.421,31.17096754]
[1643511120718,14.7137078,94.479,94.386,1.8086997]
[1643511120920,0.25,94.478,94.39,15.34]
[1643511121719,0.25,94.478,94.391,28.53942592]
[1643511122118,0.25,94.478,94.392,0.25]
[1643511123845,0.25,94.478,94.391,28.53942592]
[1643511124645,0.25,94.478,94.392,1.8086997]
[1643511125346,0.25,94.478,94.393,0.25]
[1643511125746,0.25,94.478,94.394,1.8086997]
[1643511126146,0.25,94.478,94.395,0.25]
[1643511126546,0.25,94.478,94.395,2.0586997]
[1643511128147,0.25,94.478,94.391,28.53942592]
[1643511128348,111.4,94.469,94.392,0.25]
[1643511128556,6.0,94.468,94.392,0.25]
[1643511128848,6.25,94.468,94.392,0.25]
[1643511129048,6.0,94.459,94.379,1.8086997]
[1643511129250,111.4,94.458,94.381,0.25]
[1643511129448,105.65,94.458,94.381,0.25]
[1643511129653,6.0,94.448,94.381,0.25]
[1643511129848,5.52774445,94.439,94.381,0.25]
[1643511130050,6.0,94.429,94.381,0.25]
[1643511130450,0.25,94.428,94.352,0.25]
[1643511131047,0.25,94.428,94.361,6.0]
[1643511131451,6.0,94.429,94.363,6.0]
[1643511131649,14.7137078,94.418,94.362,0.25]
[1643511131849,0.25,94.417,94.351,26.21696776]
[1643511133254,0.25,94.417,94.352,0.25]
[1643511133455,6.0,94.408,94.352,0.25]
[1643511133858,6.0,94.408,94.322,105.4]
[1643511133859,0.25,94.407,94.33,15.34]
[1643511134455,105.4,94.406,94.31,15.34]
[1643511134655,5.52774445,94.395,94.314,33.16035586]
[1643511134960,0.25,94.394,94.314,34.96905556]
[1643511135161,6.0,94.385,94.324,6.0]
[1643511135356,0.25,94.384,94.324,6.0]
[1643511135557,0.25,94.384,94.325,6.0]
[1643511135755,0.25,94.384,94.315,1.8086997]
[1643511137056,6.25,94.384,94.314,33.16035586]
[1643511137956,0.25,94.384,94.314,33.16035586]
[1643511138158,0.25,94.384,94.324,6.0]
[1643511138657,14.7137078,94.379,94.324,6.0]
[1643511138861,0.25,94.378,94.324,6.0]
[1643511140160,0.25,94.378,94.315,0.25]
[1643511140957,0.25,94.378,94.324,6.0]
[1643511142287,0.25,94.378,94.315,0.25]
[1643511143662,0.25,94.378,94.324,6.0]
[1643511143863,6.0,94.395,94.324,6.0]
[1643511144264,0.25,94.394,94.324,6.0]
[1643511144465,18.96936826,94.394,94.324,6.0]
[1643511144865,18.96936826,94.394,94.325,0.25]
[1643511145064,18.71936826,94.394,94.325,0.25]
[1643511145367,18.71936826,94.394,94.326,1.8086997]
[1643511145565,18.71936826,94.394,94.337,2.69819189]
[1643511145771,18.71936826,94.394,94.338,0.25]
[1643511145965,18.71936826,94.394,94.347,6.0]
[1643511146365,6.0,94.395,94.348,6.25]
[1643511146568,6.0,94.395,94.348,0.25]
[1643511146968,6.0,94.395,94.348,6.25]
[1643511147168,6.0,94.407,94.348,6.25]
[1643511147368,17.79634114,94.406,94.348,6.25]
[1643511147568,6.0,94.396,94.348,6.25]
[1643511147971,6.0,94.396,94.35,6.0]
[1643511148369,6.0,94.396,94.358,6.0]
[1643511148571,6.0,94.407,94.358,15.75]
[1643511148772,6.0,94.407,94.359,0.25]
[1643511149172,19.8746309,94.422,94.359,0.25]
[1643511149572,0.25,94.416,94.359,0.25]
[1643511149805,0.25,94.416,94.353,0.25]
[1643511150002,19.8746309,94.422,94.353,0.25]
[1643511151005,19.8746309,94.422,94.354,1.8086997]
[1643511151204,0.25,94.421,94.354,1.8086997]
[1643511151406,0.25,94.421,94.355,0.25]
[1643511151804,0.25,94.421,94.355,2.0586997]
[1643511154607,0.25,94.421,94.365,6.0]
[1643511154807,0.25,94.438,94.366,0.25]
[1643511155006,0.25,94.438,94.366,2.0586997]
[1643511155208,24.9406,94.446,94.367,1.8086997]
[1643511155406,18.57199098,94.445,94.377,2.69819189]
[1643511155611,18.57199098,94.445,94.377,8.69819189]
[1643511155806,18.57199098,94.445,94.378,107.4586997]
[1643511156011,18.57199098,94.445,94.388,6.0]
[1643511156407,18.57199098,94.445,94.389,2.0586997]
[1643511156606,0.25,94.444,94.399,6.0]
[1643511156807,0.25,94.444,94.4,33.41035586]
[1643511159012,46.9421,94.469,94.4,42.24035586]
[1643511159211,207.55346151,94.49,94.401,1.8086997]
[1643511159412,207.55346151,94.49,94.41,6.0]
[1643511159610,207.55346151,94.49,94.411,6.0]
[1643511159810,207.55346151,94.49,94.411,8.0586997]
[1643511160012,18.16169387,94.489,94.421,2.69819189]
[1643511160212,18.16169387,94.489,94.421,21.09819189]
[1643511160512,18.16169387,94.489,94.422,2.0586997]
[1643511160814,18.16169387,94.489,94.422,0.25]
[1643511161010,18.16169387,94.489,94.423,1.8086997]
[1643511161510,18.16169387,94.489,94.424,0.25]
[1643511161710,0.25,94.488,94.424,0.25]
[1643511161911,0.25,94.488,94.425,1.8086997]
[1643511162109,0.25,94.488,94.43,15.88]
[1643511162310,0.25,94.51,94.431,0.25]
[1643511162711,49.5298,94.511,94.431,2.0586997]
[1643511162911,49.5298,94.511,94.432,1.8086997]
[1643511163111,16.74997047,94.51,94.432,1.8086997]
[1643511163413,16.74997047,94.51,94.433,0.25]
[1643511164112,0.25,94.509,94.434,1.80764955]
[1643511164313,0.25,94.509,94.435,0.25]
[1643511164711,16.74997047,94.51,94.437,25.46037839]
[1643511164911,16.74997047,94.51,94.438,0.25]
[1643511165114,16.74997047,94.51,94.438,2.05764955]
[1643511165312,16.74997047,94.51,94.439,1.80764955]
[1643511165711,16.74997047,94.51,94.44,0.25]
[1643511166115,0.25,94.509,94.441,1.80764955]
[1643511166313,0.25,94.509,94.442,0.25]
[1643511166712,0.25,94.509,94.442,2.05764955]
[1643511169116,6.0,94.5,94.442,0.25]
[1643511169315,0.25,94.499,94.437,25.46037839]
[1643511169815,0.25,94.499,94.438,0.25]
[1643511170015,6.25,94.499,94.438,0.25]
[1643511170415,6.0,94.499,94.438,0.25]
[1643511170616,24.8024,94.509,94.439,1.80764955]
[1643511170815,24.8024,94.509,94.44,0.25]
[1643511171016,16.74997047,94.51,94.44,0.25]
[1643511171319,16.74997047,94.51,94.441,1.80764955]
[1643511171715,16.74997047,94.51,94.442,0.25]
[1643511171916,0.25,94.509,94.442,0.25]
[1643511172116,0.25,94.509,94.443,1.80764955]
[1643511172314,0.25,94.509,94.444,0.25]
[1643511172716,16.74997047,94.51,94.445,1.80361956]
[1643511172917,16.74997047,94.51,94.446,0.25]
[1643511173418,16.74997047,94.51,94.447,1.80361956]
[1643511173818,16.74997047,94.51,94.448,0.25]
[1643511174217,16.74997047,94.51,94.449,1.80361956]
[1643511174418,16.74997047,94.51,94.45,0.25]
[1643511174824,16.74997047,94.51,94.451,1.80361956]
[1643511175020,16.74997047,94.51,94.452,10.39816936]
[1643511175419,16.74997047,94.51,94.453,1.80361956]
[1643511176624,16.74997047,94.51,94.454,0.25]
[1643511176819,0.25,94.509,94.454,0.25]
[1643511177020,0.25,94.509,94.454,2.05361956]
[1643511177219,0.25,94.509,94.454,1.80361956]
[1643511177422,0.25,94.509,94.455,0.25]
[1643511178623,16.74997047,94.51,94.455,0.25]
[1643511178824,0.25,94.509,94.455,0.25]
[1643511180027,16.74997047,94.51,94.455,0.25]
[1643511180227,16.74997047,94.51,94.456,1.80361956]
[1643511180627,6.0,94.5,94.452,10.39816936]
[1643511180829,6.0,94.5,94.43,31.22]
[1643511181027,6.0,94.499,94.43,15.34]
[1643511181728,0.25,94.498,94.431,30.3996905]
[1643511182126,0.25,94.498,94.432,0.25]
[1643511182331,0.25,94.508,94.432,0.25]
[1643511183332,6.0,94.499,94.432,0.25]
[1643511183756,0.25,94.498,94.432,0.25]
[1643511186868,2.94188939,94.497,94.432,0.25]
[1643511187166,3.49148178,94.486,94.432,0.25]
[1643511187372,0.25,94.485,94.43,15.34]
[1643511187569,6.0,94.476,94.397,17.23443777]
[1643511187769,0.25,94.475,94.38,15.34]
[1643511187973,2.92568781,94.472,94.38,15.34]
[1643511188268,22.7858,94.475,94.38,15.34]
[1643511188269,0.25,94.471,94.38,15.34]
[1643511188469,6.0,94.462,94.38,15.34]
[1643511188669,23.5769,94.461,94.38,15.34]
[1643511188869,8.93540117,94.46,94.381,0.25]
[1643511189069,3.54965436,94.449,94.381,0.25]
[1643511189275,0.25,94.448,94.381,0.25]
[1643511192474,6.0,94.439,94.381,0.25]
[1643511192876,0.25,94.438,94.381,0.25]
[1643511202513,0.25,94.438,94.38,31.228]
[1643511203917,0.25,94.438,94.381,0.25]
[1643511207629,0.25,94.438,94.38,15.34]
[1643511207825,0.25,94.438,94.381,0.25]
[1643511209525,6.0,94.434,94.381,0.25]
[1643511209727,15.42496844,94.433,94.38,15.34]
[1643511209925,6.0,94.429,94.38,15.34]
[1643511210128,15.42496844,94.433,94.381,0.25]
[1643511211730,15.42496844,94.433,94.38,15.34]
[1643511213231,15.42496844,94.433,94.381,0.25]
[1643511213766,6.0,94.423,94.381,0.25]
[1643511213969,15.42496844,94.433,94.381,0.25]
[1643511214167,0.25,94.422,94.381,0.25]
[1643511214369,15.42496844,94.433,94.381,0.25]
[1643511214976,0.25,94.433,94.381,0.25]
[1643511215368,0.25,94.437,94.381,0.25]
[1643511215971,1.4670824,94.428,94.381,0.25]
[1643511216272,1.7170824,94.427,94.381,0.25]
[1643511217374,1.4670824,94.426,94.381,0.25]
[1643511217774,0.25,94.425,94.381,0.25]
[1643511220977,0.25,94.425,94.381,105.65]
[1643511223379,0.25,94.425,94.381,0.25]
[1643511223584,0.25,94.425,94.381,105.65]
[1643511224802,0.25,94.427,94.381,105.65]
[1643511225404,1.7170824,94.427,94.381,105.65]
[1643511227010,1.7170824,94.427,94.39,15.887]
[1643511227208,1.4670824,94.426,94.392,2.3928604]
[1643511227411,0.25,94.425,94.392,2.3928604]
[1643511228011,1.4670824,94.427,94.392,2.3928604]
[1643511228210,1.4670824,94.427,94.393,0.25]
[1643511228410,1.4670824,94.43,94.393,0.25]
[1643511229211,1.4670824,94.429,94.393,0.25]
[1643511229412,0.25,94.428,94.393,0.25]
[1643511230511,0.25,94.444,94.393,0.25]
[1643511230712,1.47355656,94.428,94.393,0.25]
[1643511230913,1.72355656,94.427,94.393,0.25]
[1643511231112,0.25,94.427,94.393,0.25]
[1643511232314,1.72355656,94.428,94.393,0.25]
[1643511232515,0.25,94.428,94.393,0.25]
[1643511232717,1.72355656,94.428,94.393,0.25]
[1643511232919,1.47355656,94.427,94.393,0.25]
[1643511233315,0.25,94.426,94.393,0.25]
[1643511234416,0.25,94.427,94.393,0.25]
[1643511235217,1.72355656,94.427,94.393,0.25]
[1643511238520,1.47355656,94.427,94.393,0.25]
[1643511238720,15.887,94.5,94.393,0.25]
[1643511238721,1.47355656,94.438,94.393,0.25]
[1643511238925,1.47355656,94.446,94.402,6.0]
[1643511239122,1.47355656,94.444,94.402,6.0]
[1643511239323,1.47355656,94.448,94.403,2.03649914]
[1643511239625,1.47355656,94.448,94.404,1.78649914]
[1643511239831,1.47355656,94.449,94.405,0.25]
[1643511240023,1.47355656,94.448,94.41,15.34]
[1643511240223,1.47355656,94.451,94.411,105.4]
[1643511240426,1.47355656,94.451,94.411,107.43649914]
[1643511240827,1.47355656,94.451,94.412,1.78649914]
[1643511241023,1.47355656,94.452,94.413,31.35685839]
[1643511241327,1.47186493,94.462,94.42,15.881]
[1643511241523,1.47186493,94.476,94.43,21.34]
[1643511241723,1.47186493,94.482,94.43,21.34]
[1643511241924,1.47186493,94.483,94.431,107.43649914]
[1643511242123,1.47186493,94.483,94.431,113.43649914]
[1643511242424,1.47186493,94.483,94.45,15.877]
[1643511242623,1.47186493,94.483,94.46,15.34]
[1643511242824,1.47186493,94.485,94.461,0.25]
[1643511243028,1.47186493,94.484,94.461,0.25]
[1643511243425,1.47186493,94.485,94.461,24.55197289]
[1643511244726,1.47186493,94.494,94.461,24.55197289]
[1643511244925,1.47186493,94.495,94.461,24.55197289]
[1643511245127,0.25,94.493,94.461,24.55197289]
[1643511246928,0.25,94.498,94.461,24.55197289]
[1643511249329,0.25,94.501,94.461,24.55197289]
[1643511249731,0.25,94.504,94.461,0.25]
[1643511250633,0.25,94.504,94.461,34.42287188]
[1643511251258,0.25,94.505,94.461,34.42287188]
[1643511252262,0.25,94.506,94.461,34.42287188]
[1643511252860,0.25,94.507,94.461,34.42287188]
[1643511254664,6.0,94.499,94.461,0.25]
[1643511254867,6.0,94.499,94.44,15.34]
[1643511254868,0.25,94.498,94.44,15.34]
[1643511255267,0.25,94.498,94.441,0.25]
[1643511255669,0.25,94.498,94.441,29.5375247]
[1643511256067,1.72186493,94.502,94.441,29.5375247]
[1643511256267,0.25,94.502,94.441,29.5375247]
[1643511256467,1.72186493,94.502,94.441,29.5375247]
[1643511257768,1.47186493,94.501,94.441,29.5375247]
[1643511258168,1.72186493,94.5,94.441,29.5375247]
[1643511258669,0.25,94.5,94.441,29.5375247]
[1643511260071,1.47186493,94.502,94.441,29.5375247]
[1643511260272,1.72186493,94.501,94.441,29.5375247]
[1643511260982,1.47186493,94.499,94.442,1.78649914]
[1643511261178,1.47186493,94.499,94.451,6.0]
[1643511261374,0.25,94.498,94.452,0.25]
[1643511261980,0.25,94.498,94.452,2.03649914]
[1643511262177,0.25,94.498,94.452,0.25]
[1643511262574,0.25,94.498,94.442,0.25]
[1643511262973,1.72186493,94.498,94.442,0.25]
[1643511263174,2.09302855,94.495,94.442,0.25]
[1643511263373,0.25,94.494,94.442,0.25]
[1643511263877,0.25,94.494,94.451,6.0]
[1643511264276,0.25,94.494,94.452,0.25]
[1643511264677,0.25,94.494,94.418,1.78298409]
[1643511264678,6.0,94.485,94.418,1.78298409]
[1643511264977,0.25,94.484,94.41,15.883]
[1643511265175,6.0,94.481,94.41,31.223]
[1643511265379,6.25,94.48,94.41,15.34]
[1643511265576,7.47186493,94.47,94.41,15.34]
[1643511265780,1.47186493,94.462,94.354,1.47500759]
[1643511265979,1.47186493,94.45,94.35,31.233]
[1643511266183,12.99,94.45,94.35,31.233]
[1643511266379,6.0,94.44,94.36,15.34]
[1643511266579,2.71413879,94.438,94.362,31.79309921]
[1643511266780,0.25,94.437,94.362,31.79309921]
[1643511267080,6.0,94.428,94.362,31.79309921]
[1643511267281,0.25,94.427,94.362,31.79309921]
[1643511267482,6.25,94.427,94.362,31.79309921]
[1643511267679,18.01082727,94.423,94.362,31.79309921]
[1643511267882,0.25,94.422,94.362,31.79309921]
[1643511268082,6.0,94.413,94.362,31.79309921]
[1643511268283,0.25,94.412,94.363,0.25]
[1643511270283,18.01082727,94.423,94.363,0.25]
[1643511270284,0.25,94.422,94.363,0.25]
[1643511273189,6.0,94.413,94.363,0.25]
[1643511273388,0.25,94.412,94.363,0.25]
[1643511274791,0.25,94.422,94.363,0.25]
[1643511278115,0.25,94.422,94.362,31.79309921]
[1643511278316,6.0,94.413,94.362,31.79309921]
[1643511278716,0.25,94.412,94.362,31.79309921]
[1643511279717,0.25,94.412,94.363,0.25]
[1643511279920,0.25,94.422,94.363,0.25]
[1643511282523,6.0,94.413,94.362,31.79309921]
[1643511282924,0.25,94.412,94.362,31.79309921]
[1643511283523,6.25,94.412,94.362,31.79309921]
[1643511286125,6.25,94.412,94.34,15.34]
[1643511286326,22.648,94.411,94.341,0.25]
[1643511286528,6.0,94.401,94.35,6.0]
[1643511286926,0.25,94.4,94.35,6.0]
[1643511287126,3.95418154,94.4,94.351,25.29039472]
[1643511287626,3.95418154,94.4,94.361,6.0]
[1643511292633,0.25,94.4,94.361,6.0]
[1643511292832,0.25,94.41,94.361,6.0]
[1643511293536,20.85949821,94.41,94.361,6.0]
[1643511294234,0.25,94.41,94.361,6.0]
[1643511294441,0.25,94.41,94.362,0.25]
[1643511294635,0.25,94.41,94.362,6.25]
[1643511295335,22.648,94.411,94.362,6.25]
[1643511296738,0.25,94.41,94.362,6.25]
[1643511304474,0.25,94.41,94.371,9.09459647]
[1643511305470,0.25,94.41,94.381,6.0]
[1643511305870,0.25,94.416,94.381,6.0]
[1643511306472,0.25,94.416,94.372,0.25]
[1643511306672,0.25,94.416,94.371,9.09459647]
[1643511307076,6.0,94.407,94.371,9.09459647]
[1643511307274,0.25,94.406,94.371,9.09459647]
[1643511308475,0.25,94.416,94.371,9.09459647]
[1643511308883,0.25,94.416,94.347,1.47500759]
[1643511309076,0.25,94.416,94.361,0.25]
[1643511309679,0.25,94.416,94.37,6.0]
[1643511309878,0.25,94.416,94.371,32.71428779]
[1643511312881,0.25,94.428,94.371,32.71428779]
[1643511313182,24.5894,94.437,94.381,6.0]
[1643511313581,6.0,94.427,94.382,6.25]
[1643511313784,20.45951913,94.426,94.383,0.25]
[1643511313984,6.0,94.427,94.383,105.65]
[1643511314185,1.47186493,94.444,94.394,105.4]
[1643511314484,22.5424,94.529,94.395,0.25]
[1643511314485,1.47186493,94.471,94.395,0.25]
[1643511314684,1.47186493,94.473,94.404,6.0]
[1643511314889,1.47186493,94.475,94.405,0.25]
[1643511315085,15.75196373,94.472,94.41,6.0]
[1643511315285,0.25,94.471,94.411,0.25]
[1643511315485,0.25,94.471,94.415,6.0]
[1643511315885,0.25,94.471,94.416,8.03863999]
[1643511316086,0.25,94.471,94.416,2.03863999]
[1643511316286,0.25,94.471,94.416,0.25]
[1643511316887,0.25,94.471,94.406,0.25]
[1643511317490,15.75196373,94.472,94.406,0.25]
[1643511318489,15.75196373,94.472,94.407,1.78863999]
[1643511318890,0.25,94.471,94.408,0.25]
[1643511319291,0.25,94.471,94.409,1.78863999]
[1643511319689,0.25,94.471,94.41,0.25]
[1643511320095,0.25,94.471,94.411,1.78863999]
[1643511320294,0.25,94.471,94.412,0.25]
[1643511320694,0.25,94.471,94.41,9.97]
[1643511320695,0.25,94.471,94.413,1.78863999]
[1643511320993,0.25,94.471,94.405,1.6707034]
[1643511321396,23.9157,94.471,94.405,1.6707034]
[1643511321593,6.0,94.461,94.405,1.6707034]
[1643511321793,0.25,94.46,94.405,1.6707034]
[1643511322724,0.25,94.46,94.406,1.78863999]
[1643511322918,0.25,94.46,94.406,2.03863999]
[1643511323118,0.25,94.47,94.406,2.03863999]
[1643511323518,0.25,94.47,94.407,1.78863999]
[1643511323921,0.25,94.47,94.408,0.25]
[1643511324220,0.25,94.47,94.409,1.78863999]
[1643511325120,6.0,94.461,94.409,1.78863999]
[1643511325322,0.25,94.46,94.41,0.25]
[1643511325819,0.25,94.46,94.411,1.78863999]
[1643511326221,0.25,94.46,94.412,0.25]
[1643511326623,0.25,94.47,94.412,0.25]
[1643511327523,0.25,94.47,94.406,0.25]
[1643511327924,0.25,94.47,94.407,1.78863999]
[1643511328324,0.25,94.47,94.408,0.25]
[1643511328722,0.25,94.47,94.409,1.78863999]
[1643511328922,0.25,94.47,94.415,6.0]
[1643511329525,0.25,94.47,94.419,6.0]
[1643511329722,0.25,94.47,94.416,1.78863999]
[1643511329925,0.25,94.47,94.427,27.03541784]
[1643511330326,0.25,94.47,94.437,6.0]
[1643511330530,0.25,94.47,94.438,6.0]
[1643511330925,0.25,94.494,94.438,6.0]
[1643511331127,0.25,94.495,94.437,9.48]
[1643511331328,16.91011882,94.497,94.437,9.48]
[1643511331329,16.91011882,94.497,94.438,0.25]
[1643511331528,16.91011882,94.497,94.448,7.34957335]
[1643511334630,0.25,94.496,94.448,7.34957335]
[1643511338834,22.7372,94.507,94.449,2.03863999]
[1643511339234,22.7372,94.507,94.448,7.34957335]
[1643511339235,22.7372,94.507,94.45,1.78863999]